Cogmind - Beta 11 X8 @@@ ROGUE MODE // 2021.11.11 @ 01:37:39 Player: Olga Result: Destroyed by as-73950 with Assembled Heavy Rifle Performance ------------- Evolutions (1) 500 Regions Visited (4) 800 Robots Destroyed (28) 140 Value Destroyed (797) 797 Prototype IDs (0) 0 Alien Tech Used (0) 0 Bonus (0) 0 TOTAL SCORE: 2237 Bonus ------- None Cogmind --------- Core Integrity 0/400 Matter 210/300 Energy 79/100 System Corruption 0% Temperature Cool (20) Movement Core (50) Location -9/Mines Parts ------- > --- POWER (1) -------- (None) > --- PROPULSION (2) --- Aluminum Leg > --- UTILITY (4) ------ (None) > --- WEAPON (2) ------- (None) > --- INVENTORY (5) ---- Ion Engine Aluminum Leg Compact Wheel Compact Wheel Grenade Launcher Peak State ------------ > --- POWER ------------ Ion Engine > --- PROPULSION ------- Light Treads Light Treads > --- UTILITY ---------- Small Storage Unit Medium Storage Unit Large Storage Unit > --- WEAPON ----------- Light Assault Rifle Heavy Assault Rifle > --- INVENTORY -------- Light Ion Engine Light Treads Aluminum Leg Aluminum Leg Compact Wheel Compact Wheel Small Laser Small Laser Light Assault Rifle Grenade Launcher [Rating: 10] Favorites ----------- Power Ion Engine Engine Ion Engine Propulsion Light Treads Treads Light Treads Leg Aluminum Leg Utility Weapon Shielding Device Improved Heat Sink Storage Large Storage Unit Protection Weapon Shielding Weapon Small Laser Energy Gun Small Laser Ballistic Gun Light Assault Rifle Launcher Grenade Launcher Build | -11 -10 -10 -9 -9 ------- Run | Scr Mat Min Mat Min Slots Evolved 2 | . . . 2 . Power . | . . . . . Propulsion . | . . . . . Utility 2 | . . . 2 . Weapon . | . . . . . Parts Attached 23 | . 5 . 18 . Power 1 | . . . 1 . Engine 1 | . . . 1 . Core . | . . . . . Reactor . | . . . . . Propulsion 5 | . 2 . 3 . Treads 4 | . 2 . 2 . Leg 1 | . . . 1 . Wheel . | . . . . . Hover . | . . . . . Flight . | . . . . . Utility 7 | . 2 . 5 . Device 2 | . 1 . 1 . Storage 3 | . . . 3 . Processor . | . . . . . Hackware . | . . . . . Protection 2 | . 1 . 1 . Artifact . | . . . . . Weapon 10 | . 1 . 9 . Energy Gun 3 | . . . 3 . Energy Cannon . | . . . . . Ballistic Gun 6 | . . . 6 . Ballistic Cannon . | . . . . . Launcher 1 | . 1 . . . Special Weapon . | . . . . . Impact Weapon . | . . . . . Slashing Weapon . | . . . . . Piercing Weapon . | . . . . . Special Melee Weapon . | . . . . . Unidentified Prototypes . | . . . . . Parts Lost 11 | . . . 8 3 Power 2 | . . . 1 1 Propulsion 2 | . . . 2 . Utility 2 | . . . 2 . Weapon 5 | . . . 3 2 Highest Loss Streak 8 | . . . 8 3 Average Slot Usage (%) 84 | . 96 100 76 55 Engine 11 | . 14 14 10 5 Treads 20 | . 25 28 16 5 Leg 2 | . 2 . 2 11 Device 3 | . 8 . 2 11 Storage 13 | . 14 14 12 11 Protection 8 | . 2 14 10 . Energy Gun 9 | . 14 14 6 5 Ballistic Gun 7 | . 1 . 11 5 Launcher 7 | . 12 14 3 . Naked Turns . | . . . . . Heaviest Build 36 | 12 15 15 36 26 Greatest Support 40 | 20 40 40 40 20 Greatest Overweight (x) 11 | . . . 11 1 Average Overweight (x) . | . . . . 1 Largest Inventory Capacity 15 | . 8 8 15 15 Average Capacity 11 | . 8 8 14 14 Most Carried 12 | . 8 8 12 9 Average Carried 8 | . 7 8 9 8 Final Capacity 15 | 8 8 8 15 5 Final Carried 9 | 6 8 8 9 5 Class Distribution -------------------- 86% | Mutant 13% | Scavenger-Mutant Dominant Class ---------------- Mutant | -10/Materials Mutant | -10/Mines Mutant | -9/Materials Mutant | -9/Mines Resources | -11 -10 -10 -9 -9 ----------- Run | Scr Mat Min Mat Min Matter Collected 639 | 199 80 28 332 . Remotely . | . . . . . Salvage Created 654 | . 147 73 434 . Parts 36 | . 14 2 20 . Haulers Intercepted . | . . . . . Recyclers Shooed . | . . . . . Parts Field Recycled . | . . . . . Retrieved Matter . | . . . . . Parts Self-Destructed . | . . . . . Prevented . | . . . . . Kills | -11 -10 -10 -9 -9 ------- Run | Scr Mat Min Mat Min Combat Hostiles Destroyed 24 | . 8 4 12 . Guns 11 | . 1 1 9 . AOE 13 | . 7 3 3 . Classes Destroyed 5 | . 4 . 1 . Worker 3 | . 2 1 . . Builder 1 | . 1 . . . Swarmer 6 | . 6 . . . Grunt 16 | . 2 4 10 . Sentry 2 | . . . 2 . Best Kill Streak 7 | . 5 3 7 . Combat Bots Only 7 | . 3 2 7 . Max Kills in Single Turn 4 | . 4 2 2 . Gunslinging . | . . . . . Exploded 2 | . 2 1 2 . Melee . | . . . . . Uniques/NPCs Destroyed . | . . . . . Combat | -11 -10 -10 -9 -9 -------- Run | Scr Mat Min Mat Min Damage Taken 1852 | . 138 162 1281 271 Core 458 | . 7 36 345 70 Absorbed by Shields . | . . . . . Core Remaining (%) 91 | 100 . 82 . . Volleys Fired 67 | . 5 15 47 . Largest 2 | . 2 2 2 . Hottest 80 | . 70 70 80 . Shots Fired 118 | . 10 29 79 . Gun 89 | . 5 15 69 . Cannon . | . . . . . Launcher 29 | . 5 14 10 . Special . | . . . . . Kinetic 47 | . . . 47 . Thermal 42 | . 5 15 22 . Explosive 29 | . 5 14 10 . Electromagnetic . | . . . . . Robot Hit Streak 15 | . 3 6 15 . Robot Miss Streak 2 | . 1 2 1 . Penetration Max . | . . . . . Secondary Targets 2 | . . . 2 . Max Gunslinging Chain 1 | . . . 1 . Shots Hit Robots 79 | . 6 18 55 . Core Hits 55 | . 13 11 31 . Critical Kills . | . . . . . Critical Parts Destroyed . | . . . . . Critical Strikes . | . . . . . Melee Attacks . | . . . . . Impact . | . . . . . Slashing . | . . . . . Piercing . | . . . . . Sneak Attacks . | . . . . . Combat Hostiles . | . . . . . Follow-up Attacks . | . . . . . Damage Inflicted 2001 | . 445 654 901 1 Guns 670 | . 21 98 551 . Cannons . | . . . . . Explosions 1319 | . 424 556 339 . Melee . | . . . . . Ramming 12 | . . . 11 1 Kinetic 409 | . . . 409 . Thermal 261 | . 21 98 142 . Explosive 1319 | . 424 556 339 . Electromagnetic . | . . . . . Impact . | . . . . . Slashing . | . . . . . Piercing . | . . . . . Highest Corruption . | . . . . . Average Corruption . | . . . . . Corruption Purged . | . . . . . Overload Shots . | . . . . . Overflow Damage 13 | . . 13 . . Projectiles . | . . . . . Explosions 13 | . . 13 . . Melee . | . . . . . Knockbacks . | . . . . . Impact . | . . . . . Kinetic . | . . . . . Secondary . | . . . . . Self-Inflicted Damage 62 | . 35 . 27 . Shots 6 | . 3 . 3 . Rammed 5 | . . . 4 1 Targets Rammed 5 | . . . 4 1 Kicked . | . . . . . Crushed . | . . . . . Highest Temperature 141 | . 30 141 27 4 Average Temperature 34 | . 13 64 11 4 Received Heat Transfer 917 | . 30 111 636 140 Siege Activations . | . . . . . Robots Corrupted . | . . . . . Combat Hostiles . | . . . . . Parts Fried . | . . . . . Impact Corruptions . | . . . . . Robots Melted . | . . . . . Combat Hostiles . | . . . . . Parts Melted . | . . . . . Heat Transferred 600 | . 50 225 325 . Parts Sabotaged . | . . . . . Parts Stolen . | . . . . . Parts Stripped . | . . . . . Power Chain Reactions . | . . . . . Missiles Intercepted . | . . . . . Alert | -11 -10 -10 -9 -9 ------- Run | Scr Mat Min Mat Min Peak Influence 243 | . 243 156 207 16 Initial 60 | . . 36 60 16 Average 112 | . 98 65 131 9 Maximum Alert Level 1 | . 1 . 1 . Low Security (%) 81 | . 81 100 76 100 Level 1 18 | . 18 . 23 . Level 2 . | . . . . . Level 3 . | . . . . . Level 4 . | . . . . . Level 5 . | . . . . . High Security . | . . . . . Max Security . | . . . . . Squads Dispatched 1 | . 1 . . . Investigation 1 | . 1 . . . Extermination . | . . . . . Reinforcement . | . . . . . Assault . | . . . . . Garrison . | . . . . . Intercept . | . . . . . Construction Impeded . | . . . . . Haulers Reinforced . | . . . . . Active Scanning Responses . | . . . . . Cargo Convoy Interrupts . | . . . . . Stealth | -11 -10 -10 -9 -9 --------- Run | Scr Mat Min Mat Min Distress Signals 4 | . . . 4 . Communications Jammed . | . . . . . Distress Signals . | . . . . . Times Spotted 57 | . 10 4 23 20 Peak Tracking Total 19 | . 6 2 9 19 Tactical Retreats 3 | . 1 . 2 . Traps | -11 -10 -10 -9 -9 ------- Run | Scr Mat Min Mat Min Traps Triggered 1 | . 1 . . . Indirectly . | . . . . . Trap Hack Attempts . | . . . . . Triggered . | . . . . . Disarmed . | . . . . . Reprogrammed . | . . . . . Reused . | . . . . . Traps Extracted . | . . . . . Installed . | . . . . . Triggered . | . . . . . Machines | -11 -10 -10 -9 -9 ---------- Run | Scr Mat Min Mat Min Machines Disabled 3 | . 1 1 1 . Max in Single Turn 1 | . 1 1 1 . Machines Sabotaged . | . . . . . Garrisons Compromised . | . . . . . Overloaded Fab Kills . | . . . . . Hacking | -11 -10 -10 -9 -9 --------- Run | Scr Mat Min Mat Min Machines Accessed 7 | . 4 . 3 . Terminals 6 | . 4 . 2 . Fabricators . | . . . . . Repair Stations 1 | . . . 1 . Recycling Units . | . . . . . Scanalyzers . | . . . . . Garrison Access . | . . . . . Total Hacks 17 | . 9 . 8 . Successful 5 | . 2 . 3 . Failed 12 | . 7 . 5 . Catastrophic 5 | . 4 . 1 . Database Lockouts . | . . . . . Manual 11 | . 9 . 2 . Terminals 14 | . 9 . 5 . Fabricators . | . . . . . Repair Stations 3 | . . . 3 . Recycling Units . | . . . . . Scanalyzers . | . . . . . Garrison Access . | . . . . . Terminal Hacks 3 | . 2 . 1 . Branch Access Points 1 | . 1 . . . Unreport Threat 1 | . 1 . . . Locate Traps 1 | . . . 1 . Fabricator Hacks . | . . . . . Repair Station Hacks 2 | . . . 2 . Scan Component 1 | . . . 1 . Repair 1 | . . . 1 . Recycling Unit Hacks . | . . . . . Scanalyzer . | . . . . . Garrison Access Hacks . | . . . . . Unauthorized Hacks . | . . . . . Terminals . | . . . . . Fabricators . | . . . . . Repair Stations . | . . . . . Recycling Units . | . . . . . Scanalyzers . | . . . . . Garrison Access . | . . . . . Data Cores Recovered . | . . . . . Used . | . . . . . Hacking Detections 7 | . 4 . 3 . Full Trace Events 2 | . 1 . 1 . Feedback Events . | . . . . . Feedback Blocked . | . . . . . Robot Schematics Acquired . | . . . . . Robots Built . | . . . . . Authchips . | . . . . . Time . | . . . . . Total Robot Build Rating . | . . . . . Part Schematics Acquired . | . . . . . Parts Built . | . . . . . Authchips . | . . . . . Time . | . . . . . Total Part Build Rating . | . . . . . Parts Repaired 1 | . . . 1 . Time 26 | . . . 26 . Parts Recycled . | . . . . . Recycled Matter . | . . . . . Retrieved Matter . | . . . . . Retrieved Components . | . . . . . Parts Scanalyzed . | . . . . . Part Schematics Acquired . | . . . . . Parts Damaged . | . . . . . Bothacking | -11 -10 -10 -9 -9 ------------ Run | Scr Mat Min Mat Min Used RIF Installer . | . . . . . Robots Hacked . | . . . . . Non-combat . | . . . . . Combat . | . . . . . Robot Hacks Applied . | . . . . . Relay Couplers Released . | . . . . . Fabnet Peak Effective % . | . . . . . Robots Rewired . | . . . . . Allies Hacked . | . . . . . Hacks Repelled . | . . . . . Allies | -11 -10 -10 -9 -9 -------- Run | Scr Mat Min Mat Min Total Allies . | . . . . . Largest Group . | . . . . . Highest-Rated Group . | . . . . . Highest-Rated Ally . | . . . . . Total Orders . | . . . . . Ally Attacks . | . . . . . Total Damage . | . . . . . Kills . | . . . . . Allies Corrupted . | . . . . . Allies Melted . | . . . . . Intel | -11 -10 -10 -9 -9 ------- Run | Scr Mat Min Mat Min Robot Analysis Total . | . . . . . Derelict Logs Recovered 2 | . . 2 . . Drone Launches . | . . . . . Drone Recoveries . | . . . . . Exploration | -11 -10 -10 -9 -9 ------------- Run | Scr Mat Min Mat Min Turns Passed 1410 | . 341 224 833 12 Spaces Moved 668 | 1 204 113 346 4 Core 1 | . . . 1 . Treads 640 | . 179 113 344 4 Legs 27 | 1 25 . 1 . Wheels . | . . . . . Hover . | . . . . . Flight . | . . . . . Fastest Speed 120 | 120 120 160 160 240 Average Speed 170 | 120 155 160 183 240 Slowest Speed 600 | 120 160 160 600 240 Overloaded Moves . | . . . . . Propulsion Burnouts . | . . . . . Robots Hopped . | . . . . . Cave-ins Triggered . | . . . . . Exploration Rate (%) 24 | 2 41 47 26 8 Regions Visited 4 Branch Regions 2 Pre-discovered Areas . | . . . . . Known Exits Taken 2 | . 1 . 1 . Unknown Exits Taken 2 | 1 . 1 . . Scrap Searched . | . . . . . Spaces Dug . | . . . . . Terrain Destroyed 164 | . 29 79 56 . Melee . | . . . . . Projectile . | . . . . . AOE 164 | . 29 79 56 . Terrain Rammed . | . . . . . Walls Destroyed . | . . . . . Machines Disabled . | . . . . . Actions | -11 -10 -10 -9 -9 --------- Run | Scr Mat Min Mat Min Total 820 | . 219 127 466 8 Wait 39 | . . . 39 . Move 664 | . 203 112 345 4 Hop . | . . . . . Pick Up 14 | . 4 . 10 . Fast Attach 2 | . 1 . 1 . Attach 12 | . 1 . 11 . Detach 2 | . . . 2 . Swap 9 | . 3 . 6 . Drop 6 | . 2 . 1 3 Fire 67 | . 5 15 47 . Melee . | . . . . . Ram 1 | . . . . 1 Kick . | . . . . . Crush 4 | . . . 4 . Escape Stasis . | . . . . . Rewire . | . . . . . Trap . | . . . . . Miscellaneous . | . . . . . Route ------- -11/Scrapyard -10/Materials (discovered 2 exits: *Min x2) -10/Mines -9/Materials (discovered 3 exits: *Min x2 / [*Sto]) -9/Mines History --------- Turn | Location | Event 1 | -11/Scrapyard | Discovered new exit (range 0) 1 | -11/Scrapyard | Entered Materials 195 | -10/Materials | Discovered new exit (range 15) 235 | -10/Materials | Identified exit to Mines 307 | -10/Materials | Build established: Mutant 342 | -10/Materials | Entered Mines 507 | -10/Mines | Learned location of 1 exit from Materials 531 | -10/Mines | Discovered new exit (range 9) 566 | -10/Mines | Entered Materials 566 | -9/Materials | Evolved 2 slots: Utility x2 567 | -9/Materials | Identified exit to Mines 653 | -9/Materials | Discovered new exit (range 14) 906 | -9/Materials | Repaired Lgt. Treads 1116 | -9/Materials | Core integrity fell below 50% 1171 | -9/Materials | Core integrity fell below 20% 1187 | -9/Materials | Lost 8 parts (1p2n2u3w) 1194 | -9/Materials | Destroyed 7 combat bots 1356 | -9/Materials | Discovered exit to Mines (range 16) 1399 | -9/Materials | Entered Mines 1400 | -9/Mines | Assembled infested the area 1411 | -9/Mines | Destroyed by as-73950 with Assembled Heavy Rifle Last Messages --------------- 01344_ Slammed into K-01 Serf. 01356_ EXIT=FOUND: MINES 01380_ W-16 Scout sends out distress signal. LOCATION=MINES GOAL=ESCAPE Something is scanning the area. 01400_ ALERT: Infestation in the mines, dispatching Demolisher response squad. 01405_ Lgt. Assault Rifle destroyed. 01407_ as-28334 destroyed. 01407_ Sml. Laser destroyed. 01407_ Lgt. Ion Engine destroyed. 01408_ as-73374 suffers critical hit (Destroy). 01408_ as-73374 destroyed. 01409_ Dropped Lgt. Treads. 01409_ T-07 Excavator destroyed. 01410_ Dropped Imp. Heat Sink. 01410_ Dropped Lrg. Storage Unit. 01410_ T-07 Excavator destroyed. 01411_ Slammed into as-45451. Map ----- +----------------------------------------------------+ | ?????????????????????????????????????????????????? | | ?????????????????????????????????????????????????? | | ?????????????????????????????????????????????????? | | ?????????????????????????????????????????????????? | | ?????????????????????????????????????????????????? | | ?????????????????????????????????????????????????? | | ?????????????????????????????????????????????????? | | ?????????????????????????????????????????????????? | | ?????????????????????????????????????????????????? | | ?????????????????????????????????????????????????? | | ???????????????????????#?????????????????????????? | | ?????????????????????# #????????????????????????? | | ????????????????????# ####????????????????????? | | ???????????????????## ##???????????????????? | | ????????????????? ## ###### ?????????????? | | ?????????????????? ??????????????? | | ??????????????????? ???????????????? | | ??????????????????? ????????????????? | | ???????????????????? a ?????????????????? | | ?????????????????????!= aa??????????????????? | | ??????????????????????= aaa% ???????????????????? | | ?????????????????????? a aa #???????????????????? | | ??????????????????????? aaaa #???????????????????? | | ???????????????????????? =a%a#???????????????????? | | ????????????????????????#aa%#????????????????????? | | ????????????????????????#@a#????????##???????????? | | ????????????????????????#!%#?????? #???????????? | | ????????????????????????#[*##### #???????????? | | ????????????????????????#! #???????????? | | ????????????????????????# ?????? | | ????????????????????????#### #####?????????? | | ???????????????????????????## ### #?????????????? | | ?????????????????????????????###?????????????????? | | ?????????????????????????????????????????????????? | | ?????????????????????????????????????????????????? | | ?????????????????????????????????????????????????? | | ?????????????????????????????????????????????????? | | ?????????????????????????????????????????????????? | | ?????????????????????????????????????????????????? | | ?????????????????????????????????????????????????? | | ?????????????????????????????????????????????????? | | ?????????????????????????????????????????????????? | | ?????????????????????????????????????????????????? | | ?????????????????????????????????????????????????? | | ?????????????????????????????????????????????????? | | ?????????????????????????????????????????????????? | | ?????????????????????????????????????????????????? | | ?????????????????????????????????????????????????? | | ?????????????????????????????????????????????????? | | | +----------------------------------------------------+ Best States ------------- Heat Dissipation 42 Energy Generation 10 Energy Capacity 250 Matter Stores 300 Matter Capacity 300 Sight Range 16 Terrain Scan Range 14 Terrain Scan Density 10 Armor Coverage 150 Weapon Shielding 33 Evasion (%) 55 Recoil Reduction 2 Item Schematics ----------------- None Robot Schematics ------------------ None Fabricated ------------ Nothing Alien Tech Used ----------------- None Achievements -------------- None Challenges ------------ None Game ------ Seed ScatterReactiveArray Manual? 0 Play Time 00:12:09 Cumulative 85.1 hours Start 2021.11.11 @ 01:26:12 End 2021.11.11 @ 01:37:39 Sessions 1 Manual Loads 0 Difficulty Rogue Special Mode None Game No. 108 Rogue 108 Adventurer 0 Explorer 0 Win Type - Total 0 Types 0/0/0/0/0/0/0/0/0 Lore% 53 Gallery% 49 Achievement% 42 Wizard Run 0 Options --------- ASCII 1 Keyboard 0 Movement Vi Keybinds 0 Fullscreen 2 Font 20/SmallcapsGlow Map View 66x50 Tactical HUD 1 Map Filters NONE Filters NONE Steam 1 RUN: a3892fec-3603-4ed8-98ff-4ca795c12565